[Event "Early-Titled-Tuesday-Blitz-May-07-2024"]
[Site "Chess.com"]
[Date "2024.05.07"]
[Round "11"]
[White "vugarrasulov"]
[Black "Hikaru"]
[Result "1/2-1/2"]
[WhiteElo "2991"]
[BlackElo "3222"]
[TimeControl "180+1"]
[EndTime "10:18:23 PDT"]
[Termination "Game drawn by 50-move rule"]

1. e4 {[%clk 0:03:00.9]} 1... a6 {[%clk 0:02:59.6]} 2. g3 {[%clk 0:02:59.3]}
2... e6 {[%clk 0:02:58.8]} 3. Bg2 {[%clk 0:02:59.6]} 3... d5 {[%clk 0:02:59.5]}
4. d4 {[%clk 0:02:58.1]} 4... dxe4 {[%clk 0:02:58.2]} 5. Bxe4 {[%clk 0:02:59]}
5... Nf6 {[%clk 0:02:56.1]} 6. Bg2 {[%clk 0:02:59.2]} 6... e5 {[%clk 0:02:56.6]}
7. Qe2 {[%clk 0:02:56.8]} 7... Qxd4 {[%clk 0:02:50.2]} 8. Nf3 {[%clk 0:02:56.7]}
8... Qe4 {[%clk 0:02:31.7]} 9. Qxe4 {[%clk 0:02:56.6]} 9... Nxe4 {[%clk
0:02:32.6]} 10. Nxe5 {[%clk 0:02:57.2]} 10... Nc5 {[%clk 0:02:29.6]} 11. Nc3
{[%clk 0:02:52.2]} 11... c6 {[%clk 0:02:25.4]} 12. Be3 {[%clk 0:02:50.8]} 12...
Be6 {[%clk 0:02:23.8]} 13. O-O-O {[%clk 0:02:50]} 13... f6 {[%clk 0:02:20.6]}
14. Nf3 {[%clk 0:02:47.8]} 14... Be7 {[%clk 0:02:14]} 15. Rhe1 {[%clk
0:02:45.3]} 15... Kf7 {[%clk 0:02:12.8]} 16. Nd4 {[%clk 0:02:39.9]} 16... Bg4
{[%clk 0:02:09.8]} 17. f3 {[%clk 0:02:38.1]} 17... Bc8 {[%clk 0:02:03.7]} 18.
Bf1 {[%clk 0:02:36.4]} 18... b5 {[%clk 0:02:01.6]} 19. Bf2 {[%clk 0:02:30.6]}
19... Re8 {[%clk 0:01:51.9]} 20. f4 {[%clk 0:02:19.7]} 20... Bg4 {[%clk
0:01:44.1]} 21. Rd2 {[%clk 0:02:18.6]} 21... Ne6 {[%clk 0:01:32.8]} 22. Nb3
{[%clk 0:02:05.8]} 22... Bf5 {[%clk 0:01:29.4]} 23. Bg2 {[%clk 0:02:04]} 23...
Rd8 {[%clk 0:01:16.2]} 24. Rde2 {[%clk 0:01:51.8]} 24... Bb4 {[%clk 0:01:16.3]}
25. Bf3 {[%clk 0:01:44.2]} 25... Bh3 {[%clk 0:01:14]} 26. a3 {[%clk 0:01:40.7]}
26... Bf8 {[%clk 0:01:11.1]} 27. Bb6 {[%clk 0:01:28.7]} 27... Rc8 {[%clk
0:01:00.1]} 28. Na5 {[%clk 0:01:26.2]} 28... b4 {[%clk 0:00:51.3]} 29. axb4
{[%clk 0:01:24.4]} 29... Bxb4 {[%clk 0:00:52]} 30. Re4 {[%clk 0:01:09.1]} 30...
Bxc3 {[%clk 0:00:48]} 31. bxc3 {[%clk 0:01:10]} 31... Nd7 {[%clk 0:00:45.4]} 32.
Bf2 {[%clk 0:01:10.2]} 32... c5 {[%clk 0:00:32]} 33. Nb7 {[%clk 0:01:04.5]}
33... Rc6 {[%clk 0:00:27.4]} 34. R4e3 {[%clk 0:00:55.3]} 34... Rb6 {[%clk
0:00:26.8]} 35. Nd6+ {[%clk 0:00:54.8]} 35... Rxd6 {[%clk 0:00:26.8]} 36. Bxa8
{[%clk 0:00:55.6]} 36... Nb6 {[%clk 0:00:26.1]} 37. Bf3 {[%clk 0:00:53]} 37...
Na4 {[%clk 0:00:19.7]} 38. Rd3 {[%clk 0:00:45.5]} 38... Rxd3 {[%clk 0:00:18.6]}
39. cxd3 {[%clk 0:00:46.4]} 39... Nxc3 {[%clk 0:00:19.5]} 40. Kd2 {[%clk
0:00:45.7]} 40... Nb5 {[%clk 0:00:19.8]} 41. Bd5 {[%clk 0:00:44.4]} 41... Nc7
{[%clk 0:00:19.6]} 42. Bc4 {[%clk 0:00:44.5]} 42... Kg6 {[%clk 0:00:19.8]} 43.
Ra1 {[%clk 0:00:34.4]} 43... Nd4 {[%clk 0:00:19.1]} 44. Bxd4 {[%clk 0:00:34.1]}
44... cxd4 {[%clk 0:00:20]} 45. Bxa6 {[%clk 0:00:33.9]} 45... Nd5 {[%clk
0:00:20.5]} 46. Bc4 {[%clk 0:00:33.8]} 46... Ne3 {[%clk 0:00:20.8]} 47. Ke2
{[%clk 0:00:26.9]} 47... Bg4+ {[%clk 0:00:20]} 48. Kf2 {[%clk 0:00:27.6]} 48...
Bf5 {[%clk 0:00:18.6]} 49. Ra7 {[%clk 0:00:24.8]} 49... h5 {[%clk 0:00:19]} 50.
Bf7+ {[%clk 0:00:21.4]} 50... Kh6 {[%clk 0:00:19]} 51. Ra8 {[%clk 0:00:20.9]}
51... g6 {[%clk 0:00:17.2]} 52. Rd8 {[%clk 0:00:18.7]} 52... Ng4+ {[%clk
0:00:16.5]} 53. Kg1 {[%clk 0:00:17.5]} 53... Bxd3 {[%clk 0:00:16.7]} 54. Rxd4
{[%clk 0:00:18.2]} 54... Bf5 {[%clk 0:00:15.7]} 55. Bc4 {[%clk 0:00:17.3]} 55...
Ne3 {[%clk 0:00:15.8]} 56. Bd3 {[%clk 0:00:17.5]} 56... Bg4 {[%clk 0:00:14.8]}
57. Kf2 {[%clk 0:00:15.4]} 57... Nd1+ {[%clk 0:00:14.9]} 58. Ke1 {[%clk
0:00:15.9]} 58... Ne3 {[%clk 0:00:14.4]} 59. Rd6 {[%clk 0:00:16.5]} 59... Kg7
{[%clk 0:00:14.5]} 60. Be2 {[%clk 0:00:15.6]} 60... Bf5 {[%clk 0:00:12.6]} 61.
Kf2 {[%clk 0:00:16]} 61... Ng4+ {[%clk 0:00:13.1]} 62. Bxg4 {[%clk 0:00:16.1]}
62... Bxg4 {[%clk 0:00:14]} 63. Ke3 {[%clk 0:00:16.4]} 63... Kf7 {[%clk
0:00:14.5]} 64. Kd4 {[%clk 0:00:16.7]} 64... Ke7 {[%clk 0:00:14]} 65. Rb6 {[%clk
0:00:17.3]} 65... Bh3 {[%clk 0:00:13.8]} 66. Rb7+ {[%clk 0:00:16.3]} 66... Ke6
{[%clk 0:00:14.2]} 67. Rg7 {[%clk 0:00:16.6]} 67... Kf5 {[%clk 0:00:14.2]} 68.
Kd5 {[%clk 0:00:14.7]} 68... h4 {[%clk 0:00:14.7]} 69. Kd4 {[%clk 0:00:14.8]}
69... hxg3 {[%clk 0:00:14.3]} 70. hxg3 {[%clk 0:00:15.7]} 70... Bg4 {[%clk
0:00:15.1]} 71. Ke3 {[%clk 0:00:14.7]} 71... Bh5 {[%clk 0:00:15.3]} 72. Ra7
{[%clk 0:00:14.7]} 72... Bd1 {[%clk 0:00:15.1]} 73. Ra5+ {[%clk 0:00:14.5]}
73... Ke6 {[%clk 0:00:14.9]} 74. Kf2 {[%clk 0:00:11.3]} 74... Bg4 {[%clk
0:00:14.7]} 75. Ke3 {[%clk 0:00:11.5]} 75... Bd1 {[%clk 0:00:14.8]} 76. f5+
{[%clk 0:00:11.9]} 76... gxf5 {[%clk 0:00:14.8]} 77. Kf4 {[%clk 0:00:12.8]}
77... Bg4 {[%clk 0:00:15]} 78. Ra7 {[%clk 0:00:10.6]} 78... Bh3 {[%clk
0:00:14.2]} 79. Rg7 {[%clk 0:00:07.6]} 79... Bf1 {[%clk 0:00:13.5]} 80. Rg8
{[%clk 0:00:07.1]} 80... Bd3 {[%clk 0:00:12.2]} 81. Rd8 {[%clk 0:00:06.8]} 81...
Bb1 {[%clk 0:00:11.8]} 82. Re8+ {[%clk 0:00:07.1]} 82... Kf7 {[%clk 0:00:12]}
83. Rb8 {[%clk 0:00:07.3]} 83... Bc2 {[%clk 0:00:12.3]} 84. Ke3 {[%clk
0:00:07.7]} 84... Kg6 {[%clk 0:00:11.9]} 85. Kd4 {[%clk 0:00:07.3]} 85... Ba4
{[%clk 0:00:10.6]} 86. Ra8 {[%clk 0:00:07.1]} 86... Bd1 {[%clk 0:00:10.3]} 87.
Rg8+ {[%clk 0:00:06.2]} 87... Kf7 {[%clk 0:00:10.7]} 88. Rb8 {[%clk 0:00:07]}
88... Kg6 {[%clk 0:00:11.1]} 89. Kd5 {[%clk 0:00:07.7]} 89... f4 {[%clk
0:00:10.7]} 90. gxf4 {[%clk 0:00:07.1]} 90... Kf5 {[%clk 0:00:11.3]} 91. Rb4
{[%clk 0:00:07.7]} 91... Bf3+ {[%clk 0:00:11.3]} 92. Kd6 {[%clk 0:00:05.3]}
92... Be4 {[%clk 0:00:11.3]} 93. Ke7 {[%clk 0:00:03.7]} 93... Kxf4 {[%clk
0:00:10.8]} 94. Kxf6 {[%clk 0:00:04.1]} 94... Ke3 {[%clk 0:00:11.5]} 95. Ke5
{[%clk 0:00:04.7]} 95... Bc2 {[%clk 0:00:12.2]} 96. Rc4 {[%clk 0:00:04.8]} 96...
Kd3 {[%clk 0:00:12.4]} 97. Rh4 {[%clk 0:00:05.4]} 97... Kc3 {[%clk 0:00:12.6]}
98. Rh3+ {[%clk 0:00:05.3]} 98... Kb2 {[%clk 0:00:12.9]} 99. Kd4 {[%clk
0:00:05.6]} 99... Bf5 {[%clk 0:00:13.4]} 100. Rg3 {[%clk 0:00:05.4]} 100... Bc2
{[%clk 0:00:12.8]} 101. Kc4 {[%clk 0:00:05.1]} 101... Bf5 {[%clk 0:00:12.7]}
102. Rg2+ {[%clk 0:00:05.4]} 102... Ka1 {[%clk 0:00:12]} 103. Kc3 {[%clk
0:00:05.9]} 103... Bb1 {[%clk 0:00:12]} 104. Rg5 {[%clk 0:00:04.6]} 104... Ba2
{[%clk 0:00:10.3]} 105. Ra5 {[%clk 0:00:04.2]} 105... Kb1 {[%clk 0:00:10.6]}
106. Rf5 {[%clk 0:00:04.9]} 106... Ka1 {[%clk 0:00:10.9]} 107. Rf2 {[%clk
0:00:03.1]} 107... Be6 {[%clk 0:00:09.5]} 108. Re2 {[%clk 0:00:02.9]} 108... Ba2
{[%clk 0:00:09.3]} 109. Rd2 {[%clk 0:00:03.5]} 109... Bf7 {[%clk 0:00:07.7]}
110. Rd1+ {[%clk 0:00:03.9]} 110... Ka2 {[%clk 0:00:07.8]} 111. Rd7 {[%clk
0:00:04.8]} 111... Be6 {[%clk 0:00:08.1]} 112. Re7 {[%clk 0:00:05]} 112... Bd5
{[%clk 0:00:08.2]} 113. Re5 {[%clk 0:00:04.8]} 113... Bg8 {[%clk 0:00:08]} 114.
Rg5 {[%clk 0:00:04.9]} 114... Bf7 {[%clk 0:00:08.1]} 115. Rg1 {[%clk 0:00:03.8]}
115... Be6 {[%clk 0:00:07.9]} 116. Rg2+ {[%clk 0:00:03.1]} 116... Ka1 {[%clk
0:00:07.8]} 117. Rg6 {[%clk 0:00:02.8]} 117... Bf5 {[%clk 0:00:08.1]} 118. Rf6
{[%clk 0:00:02.9]} 118... Bb1 {[%clk 0:00:07.8]} 119. Rf2 {[%clk 0:00:02.6]}
119... Ba2 {[%clk 0:00:08]} 120. Kc2 {[%clk 0:00:02.8]} 120... Bb1+ {[%clk
0:00:08.5]} 121. Kb3 {[%clk 0:00:03.5]} 121... Bg6 {[%clk 0:00:07.7]} 122. Rg2
{[%clk 0:00:03]} 122... Bf7+ {[%clk 0:00:07.7]} 123. Ka3 {[%clk 0:00:03.7]}
123... Kb1 {[%clk 0:00:08.1]} 124. Rb2+ {[%clk 0:00:03.6]} 124... Kc1 {[%clk
0:00:08.1]} 125. Rf2 {[%clk 0:00:04.5]} 125... Bd5 {[%clk 0:00:07.6]} 126. Kb4
{[%clk 0:00:04.8]} 126... Kb1 {[%clk 0:00:08]} 127. Kc5 {[%clk 0:00:05.3]}
127... Bb3 {[%clk 0:00:08.1]} 128. Kd4 {[%clk 0:00:06.2]} 128... Ka1 {[%clk
0:00:08.3]} 129. Kc3 {[%clk 0:00:07.1]} 129... Ba2 {[%clk 0:00:08.9]} 130. Rb2
{[%clk 0:00:06.6]} 130... Bb1 {[%clk 0:00:09.3]} 131. Kb3 {[%clk 0:00:06.9]}
131... Bg6 {[%clk 0:00:10]} 132. Ra2+ {[%clk 0:00:07]} 132... Kb1 {[%clk
0:00:10.6]} 133. Rd2 {[%clk 0:00:07.9]} 133... Bf7+ {[%clk 0:00:11.1]} 134. Kc3
{[%clk 0:00:07.8]} 134... Bg6 {[%clk 0:00:12]} 135. Rg2 {[%clk 0:00:07.7]}
135... Bf5 {[%clk 0:00:12.5]} 136. Rf2 {[%clk 0:00:08.1]} 136... Bg6 {[%clk
0:00:12.6]} 137. Kb3 {[%clk 0:00:08]} 137... Kc1 {[%clk 0:00:11.9]} 138. Rf1+
{[%clk 0:00:07.5]} 138... Kd2 {[%clk 0:00:12.2]} 139. Rg1 {[%clk 0:00:07.9]}
139... Be4 {[%clk 0:00:12.5]} 140. Kc4 {[%clk 0:00:08.8]} 140... Bd3+ {[%clk
0:00:12.7]} 141. Kd4 {[%clk 0:00:09.7]} 141... Bf5 {[%clk 0:00:12.5]} 142. Rg2+
{[%clk 0:00:10.1]} 142... Kc1 {[%clk 0:00:13.1]} 143. Rf2 {[%clk 0:00:09.4]}
143... Bg6 {[%clk 0:00:13.2]} 144. Rf6 {[%clk 0:00:09.2]} 1/2-1/2